bitfinex/quotes_SOLUSD_20241013
["timestamp","ask_amount","ask_price","bid_price","bid_amount"]
[1728809468007,6.8083,146.88,146.83,20.0]
[1728809468207,1.35888307,146.87,146.83,20.0]
[1728809468407,25.13576707,146.9,146.83,20.0]
[1728809468623,35.87228829,146.9,146.82,20.0]
[1728809468840,6.8092,146.86,146.82,20.0]
[1728809469633,23.2927,146.87,146.82,20.0]
[1728809469833,1.35888307,146.86,146.82,20.0]
[1728809470654,16.4839,146.87,146.83,21.36189496]
[1728809471223,16.4839,146.87,146.83,20.0]
[1728809472646,16.4839,146.87,146.83,21.36188331]
[1728809473434,16.4839,146.87,146.83,20.0]
[1728809475940,1.35888307,146.86,146.82,20.0]
[1728809476747,23.2927,146.87,146.82,20.0]
[1728809477151,1.35888307,146.86,146.82,20.0]
[1728809481249,7.44488307,146.86,146.81,0.1]
[1728809481652,6.81,146.85,146.81,0.1]
[1728809481854,1.35888307,146.84,146.81,0.1]
[1728809485858,8.16908307,146.84,146.81,0.1]
[1728809487656,6.811,146.82,146.81,0.1]
[1728809488045,8.16988307,146.82,146.81,0.1]
[1728809490360,1.35888307,146.82,146.81,0.1]
[1728809490955,8.16988307,146.82,146.81,0.1]
[1728809496148,1.35888307,146.82,146.81,0.1]
[1728809498067,16.4839,146.83,146.81,0.1]
[1728809498250,10.73652122,146.88,146.81,0.1]
[1728809498251,22.98948307,146.87,146.81,0.1]
[1728809498458,6.8093,146.86,146.81,1.46216981]
[1728809498660,1.35888307,146.85,146.81,0.1]
[1728809499551,1.35888307,146.85,146.81,1.46209478]
[1728809499956,8.16808307,146.86,146.81,1.46209478]
[1728809500752,8.16808307,146.86,146.81,0.1]
[1728809501674,1.35888307,146.86,146.81,0.1]
[1728809501848,6.8096,146.85,146.81,0.1]
[1728809502351,1.35888307,146.84,146.81,0.1]
[1728809505355,6.8106,146.83,146.81,0.1]
[1728809505955,6.8102,146.84,146.81,0.1]
[1728809506172,1.35888307,146.83,146.81,0.1]
[1728809507668,8.16838307,146.86,146.81,1.46225443]
[1728809507988,8.16838307,146.86,146.81,0.1]
[1728809508181,8.16838307,146.86,146.81,1.46214483]
[1728809508487,6.8097,146.85,146.81,0.1]
[1728809508659,1.35888307,146.84,146.81,0.1]
[1728809509357,8.16858307,146.85,146.81,1.46217033]
[1728809510284,1.35888307,146.84,146.81,0.1]
[1728809513171,8.16858307,146.85,146.81,1.46213745]
[1728809513870,8.16858307,146.85,146.81,0.1]
[1728809514269,1.35888307,146.84,146.81,0.1]
[1728809515289,8.16858307,146.85,146.81,0.1]
[1728809516286,1.35888307,146.84,146.81,0.1]
[1728809519381,6.8097,146.85,146.81,1.46213911]
[1728809520593,1.35888307,146.84,146.81,0.1]
[1728809529301,8.16858307,146.85,146.81,1.46215131]
[1728809529969,8.16858307,146.85,146.81,0.1]
[1728809530377,1.35888307,146.84,146.81,0.1]
[1728809540929,6.8097,146.85,146.81,0.1]
[1728809541295,1.35888307,146.84,146.81,0.1]
[1728809542117,8.16858307,146.85,146.81,0.1]
[1728809543194,6.8097,146.85,146.81,0.1]
[1728809543812,1.35888307,146.84,146.81,0.1]
[1728809546915,8.16858307,146.85,146.81,0.1]
[1728809547997,1.35888307,146.84,146.81,0.1]
[1728809549993,8.16898307,146.84,146.81,0.1]
[1728809556815,1.35888307,146.84,146.81,0.1]
[1728809557002,6.8098,146.85,146.81,0.1]
[1728809557203,1.35888307,146.84,146.81,0.1]
[1728809591542,8.16908307,146.84,146.81,0.1]
[1728809600828,1.35888307,146.84,146.81,0.1]
[1728809601028,6.8097,146.85,146.81,0.1]
[1728809601347,1.35888307,146.84,146.81,0.1]
[1728809606952,6.811,146.82,146.81,0.1]
[1728809607131,8.16988307,146.82,146.81,0.1]
[1728809610533,1.35888307,146.82,146.81,0.1]
[1728809616345,8.16988307,146.82,146.81,0.1]
[1728809622239,1.35888307,146.82,146.81,0.1]
[1728809622635,1.35888307,146.83,146.81,0.1]
[1728809625460,6.8106,146.83,146.81,0.1]
[1728809625659,1.35888307,146.82,146.81,0.1]
[1728809625839,30.22024934,146.87,146.81,0.1]
[1728809625840,6.8102,146.84,146.81,0.1]
[1728809626043,1.35888307,146.83,146.81,0.1]
[1728809628160,8.16948307,146.83,146.81,0.1]
[1728809639476,1.35888307,146.83,146.81,0.1]
[1728809639763,1.35888307,146.86,146.81,11.30687293]
[1728809640468,1.35888307,146.86,146.82,1.36216718]
[1728809640677,1.35888307,146.86,146.82,12.56904011]
[1728809641480,13.63956814,146.9,146.83,11.20687293]
[1728809641650,13.63956814,146.9,146.84,12.56877683]
[1728809641651,8.16678307,146.89,146.84,12.56877683]
[1728809641853,8.16678307,146.89,146.85,11.20687293]
[1728809643863,1.35888307,146.89,146.86,31.20687293]
[1728809644042,7.11593037,146.93,146.86,31.20687293]
[1728809644043,8.47481344,146.93,146.88,11.20687293]
[1728809644366,8.47481344,146.93,146.86,20.0]
[1728809644367,1.35888307,146.93,146.9,11.20687293]
[1728809644673,1.35888307,146.94,146.9,11.20687293]
[1728809645448,1.35888307,146.94,146.9,11.17332179]
[1728809646867,1.35888307,146.94,146.91,1.36129148]
[1728809647053,1.35888307,146.95,146.91,12.56816441]
[1728809647471,1.35888307,146.95,146.91,11.20687293]
[1728809648175,1.35888307,146.95,146.9,11.20687293]
[1728809648176,8.16388307,146.95,146.9,11.20687293]
[1728809650861,1.35888307,146.95,146.91,12.56814042]
[1728809651190,1.35888307,146.95,146.91,11.20687293]
[1728809653079,8.16398307,146.95,146.9,11.20687293]
[1728809654277,1.35888307,146.95,146.91,1.36128961]
[1728809655074,1.35888307,146.95,146.91,12.56816254]
[1728809655656,1.35888307,146.95,146.91,1.36128961]
[1728809655856,6.806,146.93,146.88,31.20687293]
[1728809656055,16.4183,146.96,146.88,31.20687293]
[1728809656056,1.35888307,146.92,146.88,31.20687293]
[1728809656252,1.35888307,146.93,146.88,31.20687293]
[1728809656782,1.35888307,146.93,146.88,20.0]
[1728809656983,1.35888307,146.93,146.88,31.20687293]
[1728809658467,1.35888307,146.94,146.9,11.20687293]
[1728809661287,1.35888307,146.95,146.9,11.20687293]
[1728809662060,8.16388307,146.95,146.9,11.20687293]
[1728809670483,8.16388307,146.95,146.89,11.20687293]
[1728809670889,6.8069,146.91,146.81,11.3148]
[1728809671200,1.35888307,146.9,146.83,11.20687293]
[1728809671486,6.8078,146.89,146.83,11.20687293]
[1728809671691,1.35888307,146.88,146.84,11.20687293]
[1728809671885,1.35888307,146.89,146.84,11.20687293]
[1728809672489,1.35888307,146.89,146.85,20.0]
[1728809680898,1.35888307,146.89,146.83,11.20687293]
[1728809681384,1.35888307,146.89,146.84,20.0]
[1728809690300,8.16678307,146.89,146.84,20.0]
[1728809690896,8.16678307,146.89,146.83,20.0]
[1728809691519,8.16678307,146.89,146.83,32.56882549]
[1728809695312,8.16678307,146.89,146.83,21.36195256]
[1728809695610,8.16678307,146.89,146.83,1.36195256]
[1728809697914,1.35888307,146.88,146.83,1.36195256]
[1728809698615,1.35888307,146.89,146.84,20.0]
[1728809700906,1.35888307,146.89,146.82,31.20687293]
[1728809701913,1.35888307,146.89,146.83,1.36182648]
[1728809702909,1.35888307,146.89,146.82,31.20687293]
[1728809704010,1.35888307,146.89,146.82,20.0]
[1728809704314,1.35888307,146.89,146.82,31.20687293]
[1728809705611,1.35888307,146.89,146.84,20.0]
[1728809708193,1.35888307,146.9,146.85,1.36182433]
[1728809708394,1.35888307,146.9,146.85,12.56869726]
[1728809710422,15.2833,146.91,146.86,11.20687293]
[1728809710616,16.64218307,146.91,146.87,1.36159422]
[1728809711122,16.64218307,146.91,146.87,12.56846715]
[1728809713125,16.64218307,146.91,146.86,11.20687293]
[1728809714400,16.64218307,146.91,146.85,11.20687293]
[1728809714927,23.44908307,146.91,146.84,31.20687293]
[1728809719324,6.8074,146.9,146.84,20.0]
[1728809719529,1.35888307,146.89,146.84,20.0]
[1728809722123,1.35888307,146.89,146.84,11.20687293]
[1728809722309,1.35888307,146.89,146.85,20.0]
[1728809723531,1.35888307,146.89,146.85,21.36178674]
[1728809724514,1.35888307,146.9,146.85,12.56865967]
[1728809724713,1.35888307,146.9,146.86,1.36170191]
[1728809726137,1.35888307,146.9,146.85,11.20687293]
[1728809726626,6.3542,146.92,146.87,11.20687293]
[1728809726829,7.71308307,146.92,146.88,20.0]
[1728809730718,7.88258307,146.95,146.89,12.56837369]
[1728809730919,7.88258307,146.95,146.9,11.20687293]
[1728809740343,7.88258307,146.95,146.89,34.98375693]
[1728809740750,14.68758307,146.95,146.9,20.0]
[1728809740924,6.8056,146.94,146.87,23.776884]
[1728809741240,1.35888307,146.93,146.88,20.0]
[1728809741927,23.86378307,146.93,146.83,3.95884424]
[1728809742133,23.86378307,146.93,146.87,11.20687293]
[1728809742723,17.05768307,146.93,146.88,12.56839792]
[1728809743150,17.05768307,146.93,146.88,11.20687293]
[1728809743526,17.05768307,146.93,146.89,1.36145338]
[1728809745438,17.05768307,146.93,146.88,11.20687293]
[1728809745951,17.05768307,146.93,146.89,1.36141591]
[1728809748856,17.05768307,146.93,146.88,11.20687293]
[1728809749556,23.86368307,146.93,146.88,20.0]
[1728809758860,23.86368307,146.93,146.88,11.20687293]
[1728809759161,23.86368307,146.93,146.85,23.776884]
[1728809759339,23.86368307,146.93,146.84,20.0]
[1728809759340,23.86368307,146.93,146.87,11.20687293]
[1728809759739,23.86368307,146.93,146.88,20.0]
[1728809761177,23.86368307,146.93,146.87,11.20687293]
[1728809761452,23.86368307,146.93,146.88,20.0]
[1728809767562,23.86368307,146.93,146.83,23.776884]
[1728809767742,23.86368307,146.93,146.86,20.0]
[1728809767939,23.86368307,146.93,146.88,20.0]
[1728809773868,23.86368307,146.93,146.88,11.20687293]
[1728809779451,23.86368307,146.93,146.87,20.0]
[1728809779767,23.86368307,146.93,146.86,31.20687293]
[1728809784772,6.076,146.92,146.82,20.0]
[1728809784972,1.35888307,146.91,146.83,11.20687293]
[1728809786472,6.8075,146.9,146.84,20.0]
[1728809786778,1.35888307,146.89,146.84,20.0]
[1728809787177,1.35888307,146.9,146.85,12.5686636]
[1728809787482,1.35888307,146.9,146.85,11.20687293]
[1728809788579,1.35888307,146.9,146.85,12.56864034]
[1728809788887,1.35888307,146.9,146.85,11.20687293]
[1728809789660,8.16628307,146.9,146.84,20.0]
[1728809792502,8.16628307,146.9,146.84,21.36179563]
[1728809792667,8.16628307,146.9,146.84,20.0]
[1728809793008,8.16628307,146.9,146.84,31.20687293]
[1728809794087,8.16628307,146.9,146.84,20.0]
[1728809794289,8.16628307,146.9,146.84,31.20687293]
[1728809795467,8.16628307,146.9,146.84,20.0]
[1728809798097,8.16628307,146.9,146.84,31.20687293]
[1728809799883,8.16628307,146.9,146.84,20.0]
[1728809800092,8.16628307,146.9,146.84,31.20687293]
[1728809801698,15.7337,146.89,146.84,20.0]
[1728809801871,15.7337,146.89,146.81,0.1]
[1728809801872,7.70468307,146.88,146.81,0.1]
[1728809802066,6.8088,146.87,146.81,0.1]
[1728809802267,1.35888307,146.86,146.81,1.46213572]
[1728809802871,1.35888307,146.86,146.81,0.1]
[1728809803068,1.35888307,146.86,146.81,1.46213327]
[1728809803376,1.35888307,146.86,146.81,21.46213327]
[1728809803779,1.35888307,146.86,146.81,1.46213327]
[1728809804802,1.35888307,146.86,146.81,0.1]
[1728809805282,1.35888307,146.86,146.81,20.1]
[1728809805689,1.35888307,146.86,146.81,11.30687293]
[1728809806203,1.35888307,146.87,146.81,11.30687293]
[1728809806490,1.35888307,146.87,146.82,12.56890403]
[1728809814883,1.35888307,146.87,146.81,11.30687293]
[1728809815995,8.16778307,146.87,146.81,11.30687293]
[1728809821012,6.8097,146.85,146.81,0.1]
[1728809821326,1.35888307,146.84,146.81,0.1]
[1728809823311,1.35888307,146.84,146.81,20.1]
[1728809824017,6.8093,146.86,146.81,20.1]
[1728809824313,1.35888307,146.85,146.81,20.1]
[1728809826820,1.35888307,146.85,146.81,11.30687293]
[1728809827011,1.35888307,146.86,146.82,11.20687293]
[1728809827894,1.35888307,146.87,146.83,12.56887464]
[1728809828623,1.35888307,146.87,146.83,11.20687293]
[1728809829123,1.35888307,146.87,146.82,11.20687293]
[1728809829304,1.35888307,146.87,146.83,1.36195306]
[1728809830819,1.35888307,146.87,146.82,11.20687293]
[1728809831422,1.35888307,146.87,146.83,1.36194882]
[1728809833710,1.35888307,146.87,146.82,11.20687293]
[1728809834008,1.35888307,146.87,146.83,1.36193843]
[1728809835102,1.35888307,146.87,146.83,12.56881136]
[1728809835323,1.35888307,146.87,146.83,32.56881136]
[1728809835920,1.35888307,146.87,146.83,31.20687293]
[1728809838026,1.35888307,146.87,146.82,31.20687293]
[1728809841522,1.35888307,146.87,146.82,31.20687293]
[1728809844505,1.35888307,146.87,146.83,1.36194624]
[1728809844906,1.35888307,146.87,146.82,31.20687293]
[1728809851136,1.35888307,146.87,146.82,32.56881525]
[1728809852136,1.35888307,146.87,146.82,31.20687293]
[1728809859224,1.35888307,146.87,146.83,1.36193941]
[1728809859622,1.35888307,146.87,146.82,31.20687293]
[1728809861948,1.35888307,146.87,146.83,1.3619196]
[1728809865354,1.35888307,146.87,146.82,31.20687293]
[1728809871870,1.35888307,146.87,146.83,1.36191757]
[1728809872663,1.35888307,146.87,146.82,31.20687293]
[1728809873256,1.35888307,146.87,146.83,1.3619153]
[1728809874642,1.35888307,146.87,146.82,31.20687293]
[1728809883277,1.35888307,146.87,146.82,20.0]
[1728809885385,1.35888307,146.87,146.83,1.36193402]
[1728809886895,1.35888307,146.87,146.82,31.20687293]
[1728809890692,1.35888307,146.87,146.82,32.56880564]
[1728809891389,1.35888307,146.87,146.82,31.20687293]
[1728809892394,1.35888307,146.87,146.83,1.36193205]
[1728809893067,1.35888307,146.87,146.82,31.20687293]
[1728809898500,1.35888307,146.87,146.83,1.36193197]
[1728809899298,7.70468307,146.88,146.83,1.36193197]
[1728809901400,7.70468307,146.88,146.82,31.20687293]
[1728809901994,14.51288307,146.88,146.82,31.20687293]
[1728809904809,14.51288307,146.88,146.83,1.36193019]
[1728809907809,14.51288307,146.88,146.82,31.20687293]
[1728809908492,14.51288307,146.88,146.83,1.36192705]
[1728809908693,14.51288307,146.88,146.82,31.20687293]
[1728809912009,6.8087,146.87,146.82,20.0]
[1728809912187,1.35888307,146.86,146.82,20.0]
[1728809913412,1.35888307,146.86,146.82,11.20687293]
[1728809913913,1.35888307,146.86,146.83,20.0]
[1728809920220,1.35888307,146.87,146.83,20.0]
[1728809929220,1.35888307,146.87,146.81,0.1]
[1728809929424,1.35888307,146.87,146.82,20.0]
[1728809931923,1.35888307,146.87,146.83,20.0]
[1728809932094,1.35888307,146.87,146.83,31.20687293]
[1728809933904,1.35888307,146.87,146.82,11.20687293]
[1728809934206,1.35888307,146.87,146.83,20.0]
[1728809939910,1.35888307,146.87,146.81,11.30687293]
[1728809940332,1.35888307,146.87,146.82,20.0]
[1728809941034,1.35888307,146.87,146.82,31.20687293]
[1728809955123,8.16768307,146.87,146.81,0.1]
[1728809955438,8.16768307,146.87,146.81,20.1]
[1728809957027,8.16768307,146.87,146.82,11.20687293]
[1728809957229,8.16768307,146.87,146.83,20.0]
[1728809964132,1.35888307,146.87,146.83,20.0]
[1728809968142,1.35888307,146.88,146.86,11.20687293]
[1728809970328,1.35888307,146.88,146.85,11.20687293]
[1728809970765,6.2369,146.92,146.87,11.20687293]
[1728809970965,1.35888307,146.91,146.88,11.20687293]
[1728809971258,1.35888307,146.91,146.89,11.20687293]
[1728809971446,7.59578307,146.92,146.88,11.20687293]
[1728809971629,7.59578307,146.92,146.89,11.20687293]
[1728809974056,7.59578307,146.92,146.88,11.20687293]
[1728809974364,7.59578307,146.92,146.89,11.20687293]
[1728809976145,1.35888307,146.92,146.89,11.20687293]
[1728809984845,1.35888307,146.92,146.88,11.20687293]
[1728810000595,6.8069,146.91,146.84,20.0]
[1728810000895,1.35888307,146.9,146.87,20.0]
[1728810001088,1.35888307,146.9,146.87,31.20687293]
[1728810002891,1.35888307,146.9,146.88,20.0]
[1728810005197,1.35888307,146.9,146.88,11.20687293]
[1728810005993,1.35888307,146.91,146.88,11.20687293]
[1728810008190,6.8077,146.9,146.85,11.20687293]
[1728810008386,1.35888307,146.89,146.85,11.20687293]
[1728810008775,8.16678307,146.89,146.84,11.20687293]
[1728810012609,8.16678307,146.89,146.85,11.20687293]
[1728810015206,1.35888307,146.89,146.85,11.20687293]
[1728810015412,8.16588307,146.91,146.86,12.56859385]
[1728810016085,1.35888307,146.91,146.86,12.56859385]
[1728810016293,1.35888307,146.91,146.87,11.20687293]
[1728810021385,7.77538307,146.92,146.88,11.20687293]
[1728810030217,7.77538307,146.92,146.89,11.20687293]
[1728810030522,1.35888307,146.95,146.91,11.20687293]
[1728810031905,1.35888307,146.95,146.91,20.0]
[1728810033592,8.16388307,146.95,146.91,20.0]
[1728810036512,6.8056,146.94,146.91,20.0]
[1728810036716,1.35888307,146.93,146.9,11.20687293]
[1728810036925,1.35888307,146.93,146.89,11.20687293]
[1728810037213,1.35888307,146.93,146.9,20.0]
[1728810049022,1.35888307,146.93,146.9,11.20687293]
[1728810058412,1.35888307,146.95,146.92,11.20687293]
[1728810060529,1.35888307,146.95,146.91,11.20687293]
[1728810060740,1.35888307,146.95,146.92,20.0]
[1728810062317,1.35888307,146.95,146.91,11.20687293]
[1728810062709,1.35888307,146.95,146.92,20.0]
[1728810062934,15.4326,146.97,146.93,11.20687293]
[1728810063329,15.4326,146.97,146.94,11.20687293]
[1728810065314,1.35888307,146.96,146.93,11.20687293]
[1728810065514,1.35888307,146.96,146.92,11.20687293]
[1728810065838,1.35888307,146.96,146.93,20.0]
[1728810067037,22.2367,146.97,146.93,20.0]
[1728810067619,15.4326,146.97,146.93,21.36104683]
[1728810067917,16.79148307,146.97,146.93,21.36104683]
[1728810068132,16.79148307,146.97,146.93,12.56791976]
[1728810068317,16.79148307,146.97,146.93,11.20687293]
[1728810068519,23.10438307,147.0,146.95,11.20687293]
[1728810068719,16.82608307,147.0,146.97,11.20687293]
[1728810068935,16.82608307,147.0,146.98,11.20687293]
[1728810069138,16.82608307,147.0,146.97,11.20687293]
[1728810069315,6.532,147.03,146.97,11.20687293]
[1728810069513,8.16098307,147.02,146.97,11.20687293]
[1728810069924,8.16098307,147.02,146.98,11.20687293]
[1728810070808,1.35888307,147.02,146.98,11.20687293]
[1728810071534,8.16078307,147.02,146.98,11.20687293]
[1728810071712,8.16078307,147.02,146.97,11.20687293]
[1728810072132,1.35888307,147.02,146.97,20.0]
[1728810072332,6.803,147.0,146.97,20.0]
[1728810072512,1.35888307,146.99,146.97,20.0]
[1728810072714,6.8036,146.98,146.92,20.0]
[1728810072934,6.8036,146.98,146.94,20.0]
[1728810073135,1.35888307,146.97,146.94,20.0]
[1728810073642,6.8047,146.96,146.92,11.20687293]
[1728810074159,1.35888307,146.95,146.89,11.2148]
[1728810074318,1.35888307,146.95,146.91,11.20687293]
[1728810074519,1.35888307,146.96,146.91,11.20687293]
[1728810074719,1.35888307,146.96,146.92,20.0]
[1728810075436,8.16338307,146.96,146.92,20.0]
[1728810075839,1.35888307,146.95,146.92,20.0]
[1728810076038,8.16308307,146.97,146.92,20.0]
[1728810079044,1.35888307,146.97,146.92,20.0]
[1728810079341,1.35888307,146.97,146.91,20.0]
[1728810079543,6.8047,146.96,146.91,31.20687293]
[1728810079733,1.35888307,146.95,146.91,31.20687293]
[1728810084848,1.15472505,146.95,146.91,31.20687293]
[1728810086932,1.15472505,146.95,146.92,20.0]
[1728810087836,1.15472505,146.96,146.92,32.56804108]
[1728810088833,1.15472505,146.96,146.92,31.20687293]
[1728810093457,1.15472505,146.96,146.89,23.776884]
[1728810093631,1.15472505,146.96,146.92,11.20687293]
[1728810095345,14.49032505,146.98,146.93,12.56792367]
[1728810100358,14.49032505,146.98,146.93,1.36105074]
[1728810102949,6.8041,146.97,146.9,20.0]
[1728810103254,1.15472505,146.96,146.92,20.0]
[1728810105765,7.95882505,146.97,146.92,20.0]
[1728810107867,6.8045,146.96,146.92,20.0]
[1728810108864,1.15472505,146.97,146.92,20.0]
[1728810109054,7.95892505,146.97,146.92,20.0]
[1728810113652,7.95892505,146.97,146.93,1.36098363]
[1728810115670,6.532,146.98,146.93,12.56785656]
[1728810115977,15.4672,146.99,146.95,20.0]
[1728810116150,16.62192505,146.99,146.95,32.56765776]
[1728810116345,15.4672,146.99,146.95,32.56765776]
[1728810116654,6.1532,147.02,146.98,11.20687293]
[1728810116967,12.9551,147.02,146.98,20.0]
[1728810117169,1.15472505,147.01,146.98,20.0]
[1728810117753,1.15472505,147.01,146.97,20.0]
[1728810117952,1.15472505,147.01,146.97,11.20687293]
[1728810118357,1.15472505,147.01,146.98,20.0]
[1728810124659,12.9551,147.02,146.93,3.98095569]
[1728810124660,6.1532,147.02,146.99,11.20687293]
[1728810124976,1.15472505,147.02,146.98,11.20687293]
[1728810125360,1.15472505,147.02,146.99,11.20687293]
[1728810127379,1.15472505,147.02,146.98,11.20687293]
[1728810127559,7.95652505,147.02,146.94,23.776884]
[1728810127757,7.95652505,147.02,146.98,20.0]
[1728810134766,6.8024,147.01,146.98,20.0]
[1728810134967,1.15472505,147.0,146.95,20.0]
[1728810135167,1.15472505,147.0,146.95,31.20687293]
[1728810136457,1.15472505,147.0,146.96,11.20687293]
[1728810136858,1.15472505,147.0,146.97,20.0]
[1728810139086,1.15472505,147.01,146.97,20.0]
[1728810141490,1.15472505,147.01,146.97,11.20687293]
[1728810141660,7.69162505,147.02,146.98,20.0]
[1728810142055,17.11972505,147.03,146.99,1.36056805]
[1728810142288,17.11972505,147.03,146.98,31.20687293]
[1728810149889,17.11972505,147.03,146.99,1.36042061]
[1728810150490,17.11972505,147.03,146.98,31.20687293]
[1728810159895,17.11972505,147.03,146.99,11.20687293]
[1728810160409,15.965,147.03,147.0,20.0]
[1728810175011,15.965,147.03,146.98,11.20687293]
[1728810175208,15.965,147.03,146.99,20.0]
[1728810176401,1.15472505,147.02,146.95,20.0]
[1728810176600,1.15472505,147.02,146.98,20.0]
[1728810180495,17.11972505,147.03,146.98,11.20687293]
[1728810180696,17.11972505,147.03,146.94,38.86702963]
[1728810180697,17.11972505,147.03,146.99,31.20687293]
[1728810181695,6.5369,147.06,146.94,38.86702963]
[1728810181696,6.5369,147.06,147.02,11.20687293]
[1728810183114,6.5369,147.06,147.03,1.36019172]
[1728810183314,6.5369,147.06,147.02,11.20687293]
[1728810188828,6.5369,147.06,147.03,11.20687293]
[1728810189409,16.0462,147.07,147.04,11.20687293]
[1728810190834,1.15472505,147.09,147.06,31.20687293]
[1728810192312,7.81912505,147.1,147.06,31.20687293]
[1728810195540,7.81912505,147.1,147.05,11.20687293]
[1728810195910,7.81912505,147.1,147.06,20.0]
[1728810197932,1.15472505,147.1,147.06,11.20687293]
[1728810198617,15.227,147.11,147.07,12.56663716]
[1728810198823,16.38172505,147.11,147.07,12.56663716]
[1728810199909,16.38172505,147.11,147.07,11.20687293]
[1728810200622,15.227,147.11,147.08,1.35975034]
[1728810201835,15.227,147.11,147.08,21.35975034]
[1728810203544,13.4607,147.14,147.08,31.20687293]
[1728810203723,1.15472505,147.13,147.08,31.20687293]
[1728810207620,1.15472505,147.13,147.07,11.20687293]
[1728810207844,1.15472505,147.13,147.08,20.0]
[1728810208441,6.7971,147.12,147.03,20.0]
[1728810208740,6.7971,147.12,147.07,20.0]
[1728810208741,1.15472505,147.11,147.07,20.0]
[1728810214150,6.6644,147.14,147.02,15.15780052]
[1728810214151,1.15472505,147.13,147.09,11.20687293]
[1728810214850,7.95142505,147.13,147.09,11.20687293]
[1728810215025,7.95142505,147.13,147.08,11.20687293]
[1728810215427,7.95142505,147.13,147.07,11.20687293]
[1728810215842,7.95142505,147.13,147.08,20.0]
[1728810217840,7.95142505,147.13,147.08,31.20687293]
[1728810218047,7.95142505,147.13,147.08,11.20687293]
[1728810220543,1.15472505,147.13,147.08,11.20687293]
[1728810223168,7.95142505,147.13,147.08,11.20687293]
[1728810224669,7.95142505,147.13,147.07,11.20687293]
[1728810224870,7.95142505,147.13,147.08,20.0]
[1728810228376,7.95142505,147.13,147.08,11.20687293]
[1728810228677,14.61542505,147.14,147.08,11.20687293]
[1728810232068,14.61542505,147.14,147.07,34.98375693]
[1728810232250,14.61542505,147.14,147.08,20.0]
[1728810235178,12.61055321,147.14,147.08,20.0]
[1728810243477,6.7969,147.13,147.08,20.0]
[1728810243698,1.15472505,147.12,147.08,20.0]
[1728810246959,7.95162505,147.13,147.08,20.0]
[1728810247590,7.95162505,147.13,147.08,31.20687293]
[1728810248385,7.95162505,147.13,147.09,1.35949962]
[1728810252087,7.95162505,147.13,147.08,31.20687293]
[1728810257193,1.15472505,147.13,147.08,31.20687293]
[1728810257398,15.227,147.15,147.11,20.0]
[1728810257399,16.38172505,147.15,147.11,20.0]
[1728810257575,15.227,147.15,147.12,1.35928825]
[1728810258300,1.15472505,147.16,147.12,21.35928825]
[1728810259697,1.15472505,147.16,147.12,20.0]
[1728810259876,6.7955,147.16,147.1,11.20687293]
[1728810260074,6.7955,147.16,147.11,20.0]
[1728810260075,1.15472505,147.15,147.11,20.0]
[1728810261774,8.13051045,147.17,147.11,31.20687293]
[1728810269805,8.13051045,147.17,147.12,11.20687293]
[1728810270101,8.13051045,147.17,147.13,1.35917407]
[1728810272901,8.13051045,147.17,147.13,12.566047]
[1728810273107,0.1805854,147.17,147.13,12.566047]
[1728810273798,0.1805854,147.17,147.13,11.20687293]
[1728810274102,0.1805854,147.17,147.14,11.20687293]
[1728810274404,0.1805854,147.17,147.15,1.3589816]
[1728810274613,0.1805854,147.17,147.15,12.56585453]
[1728810276987,0.1805854,147.17,147.15,11.20687293]
[1728810280507,0.1805854,147.17,147.14,11.20687293]
[1728810285299,0.1805854,147.17,147.13,11.20687293]
[1728810285706,0.1805854,147.17,147.14,20.0]
[1728810287425,0.1805854,147.17,147.15,11.20687293]
[1728810287616,0.1805854,147.17,147.16,31.20687293]
[1728810290612,0.1805854,147.17,147.16,20.0]
[1728810299428,0.1805854,147.17,147.15,20.0]
[1728810300202,0.1805854,147.17,147.15,11.20687293]
[1728810300526,0.1805854,147.17,147.16,20.0]
[1728810311317,0.1805854,147.17,147.16,21.35878427]
[1728810312031,0.1805854,147.17,147.16,20.0]
[1728810312535,0.1805854,147.17,147.13,3.80968378]
[1728810312831,0.1805854,147.17,147.15,43.776884]
[1728810316822,0.1805854,147.17,147.16,12.56565704]
[1728810317047,0.1805854,147.17,147.16,32.56565704]
[1728810317925,0.1805854,147.17,147.16,31.20687293]
[1728810333545,0.1805854,147.17,147.16,20.0]
[1728810333729,0.1805854,147.17,147.14,20.0]
[1728810334345,0.1805854,147.17,147.14,31.20687293]
[1728810335231,0.1805854,147.17,147.16,20.0]